Cogmind - Beta 16 @@@ ROGUE MODE // 2025.11.10 @ 22:30:45 Player: skywing Result: Destroyed by Y-54 Guardian with Gatling Laser Performance ------------- Evolutions (0) 0 Regions Visited (3) 600 Robots Destroyed (38) 190 Value Destroyed (724) 724 Prototype IDs (0) 0 Alien Tech Used (0) 0 Bonus (0) 0 TOTAL SCORE: 1514 Bonus ------- None Cogmind --------- Core Integrity 0/250 Matter 300/300 Energy 125/125 System Corruption 0% Temperature Cool (18) Movement Rolling (175) Ox5 Location -7/Recycling Parts ------- > --- POWER (1) -------- Light Ion Engine > --- PROPULSION (2) --- Compact Wheel > --- UTILITY (2) ------ Huge Storage Unit > --- WEAPON (2) ------- Hammer Great Maul > --- INVENTORY (25) --- Subdweller Power Source Spiked Treads Compact Wheel Compact Wheel Subdweller Monowheel Subdweller Monowheel Subdweller Monowheel Improved Heat Sink Huge Storage Unit Medium Battery (150) Subdweller Optics Improved Terrain Scanner Seismic Detector Seismic Detector Targeting Computer Scrap Shield Hacking Suite Light EM Pulse Cannon Barrage Gun Datajack Flamer Peak State ------------ > --- POWER ------------ Ion Engine > --- PROPULSION ------- Compact Wheel Compact Wheel > --- UTILITY ---------- Huge Storage Unit Hardened Light Armor Plating > --- WEAPON ----------- Light EM Pulse Cannon Heavy Rocket Launcher > --- INVENTORY -------- Light Ion Engine Light Ion Engine Subdweller Power Source Spiked Treads Subdweller Monowheel Subdweller Monowheel Subdweller Monowheel Improved Heat Sink Huge Storage Unit Medium Battery Subdweller Optics Improved Terrain Scanner Seismic Detector Seismic Detector Targeting Computer Hardened Light Armor Plating Scrap Shield Hacking Suite Light EM Pulse Cannon Barrage Gun Datajack Flamer Hammer Great Maul [Rating: 16] Favorites ----------- Power Ion Engine Engine Ion Engine Propulsion Wheel Treads Light Treads Wheel Wheel Utility Huge Storage Unit Device Seismic Detector Storage Huge Storage Unit Protection Hardened Light Armor Plating Weapon Light EM Pulse Cannon Energy Gun Small Laser Energy Cannon Light EM Pulse Cannon Ballistic Gun Barrage Gun Ballistic Cannon Light Cannon Launcher Heavy Rocket Launcher Special Weapon Flamer Impact Weapon Great Maul Special Melee Weapon Datajack Build | -11 -10 -10 -7 ------- Run | Yrd Mat Sub Rec Slots Evolved . | . . . . Power . | . . . . Propulsion . | . . . . Utility . | . . . . Weapon . | . . . . Parts Attached 37 | 9 7 8 13 Power 6 | 1 1 1 3 Engine 6 | 1 1 1 3 Core . | . . . . Reactor . | . . . . Propulsion 10 | 4 1 2 3 Treads 2 | 2 . . . Leg . | . . . . Wheel 8 | 2 1 2 3 Hover . | . . . . Flight . | . . . . Utility 5 | 2 1 1 1 Device 1 | 1 . . . Storage 2 | 1 1 . . Processor . | . . . . Hackware . | . . . . Protection 2 | . . 1 1 Artifact . | . . . . Weapon 16 | 2 4 4 6 Energy Gun 2 | 2 . . . Energy Cannon 6 | . 3 2 1 Ballistic Gun 1 | . . 1 . Ballistic Cannon 1 | . 1 . . Launcher 1 | . . . 1 Special Weapon 2 | . . 1 1 Impact Weapon 2 | . . . 2 Slashing Weapon . | . . . . Piercing Weapon . | . . . . Special Melee Weapon 1 | . . . 1 Unidentified Prototypes . | . . . . Parts Lost 11 | . . 1 10 Power 3 | . . . 3 Propulsion 2 | . . 1 1 Utility 2 | . . . 2 Weapon 4 | . . . 4 Highest Loss Streak 4 | . . 1 4 To Critical Strikes . | . . . . Average Backups 19 | 2 16 23 21 Power 2 | . 2 2 1 Propulsion 4 | 1 4 4 4 Utility 8 | . 6 11 10 Weapon 3 | . 3 4 3 Tool/Special . | . . . . Unused Backups 28 | . 7 7 14 Power 1 | . . . 1 Propulsion 7 | . 2 1 4 Utility 17 | . 2 6 9 Weapon 3 | . 3 . . Tool/Special . | . . . . Average Slot Usage (%) 98 | . 99 100 92 Engine 13 | . 14 14 13 Treads 3 | . 8 . . Wheel 23 | . 19 28 22 Device 6 | . 13 . . Storage 14 | . 14 14 14 Protection 7 | . . 13 13 Energy Gun 5 | . 11 . . Energy Cannon 16 | . 12 24 13 Ballistic Gun 1 | . . 2 . Ballistic Cannon 2 | . 4 . . Impact Weapon 1 | . . . 10 Peak Build Rating 16 | 7 12 15 16 Average Rating 11 | 4 9 13 13 On Entrance 8 | . 7 12 13 Avg Prop Armor Cover (%) 7 | 7 . . . Naked Turns . | . . . . Heaviest Build 101 | 11 94 101 101 Greatest Support 40 | 40 40 30 32 Greatest Overweight (x) 5 | . 4 5 4 Average Overweight (x) 3 | . 3 3 2 Largest Inventory Capacity 25 | 8 25 25 25 Average Capacity 24 | 6 24 25 25 Most Carried 25 | 6 25 25 25 Average Carried 19 | 3 16 24 22 Final Capacity 25 | 8 25 25 25 Final Carried 25 | 6 25 24 22 Class Distribution -------------------- 100% | Mutant Dominant Class ---------------- Mutant | -10/Materials Mutant | -10/Subcaves Mutant | -7/Recycling Resources | -11 -10 -10 -7 ----------- Run | Yrd Mat Sub Rec Matter Collected 970 | 202 450 128 190 Remotely . | . . . . Salvage Created 1640 | 18 576 290 756 Parts 80 | 4 38 21 17 Haulers Intercepted 2 | . 2 . . Recyclers Shooed 3 | 1 1 . 1 Parts Field Recycled . | . . . . Retrieved Matter . | . . . . Parts Self-Destructed 9 | . . 9 . Prevented 2 | . . 2 . Parts Restored . | . . . . Kills | -11 -10 -10 -7 ------- Run | Yrd Mat Sub Rec Combat Hostiles Destroyed 17 | . 9 6 2 Melee 1 | . . . 1 Guns 1 | . 1 . . Cannons 14 | . 7 6 1 AOE 1 | . 1 . . Classes Destroyed 11 | 1 7 3 . Worker 3 | . 3 . . Tunneler 1 | 1 . . . Hauler 2 | . 2 . . Recycler 11 | . 2 . 9 Operator 2 | . 2 . . Watcher 2 | . 2 . . Swarmer 5 | . 3 2 . Grunt 6 | . 6 . . Sentry 3 | . . 1 2 Cobbler 1 | . . 1 . Subdweller 3 | . . 3 . Best Kill Streak 5 | 1 5 2 5 Combat Bots Only 3 | . 3 2 1 Max Kills in Single Turn 2 | 1 2 1 2 Gunslinging . | . . . . Exploded 1 | . 1 . . Melee 1 | . . . 1 Uniques/NPCs Destroyed . | . . . . Combat | -11 -10 -10 -7 -------- Run | Yrd Mat Sub Rec Hostile Shots Fired 253 | . 19 45 189 Missed 94 | . 2 21 71 Hits 159 | . 17 24 118 Projectile 159 | . 17 24 118 Critical Strikes 1 | . . 1 . Damage Taken 1612 | . 233 432 947 Core 255 | . 12 80 163 Absorbed by Shields . | . . . . Regen/Repaired (Parts) 12 | . 12 . . Core Remaining (%) 100 | 100 . . . Volleys Fired 103 | 6 42 37 18 Largest 2 | 2 2 2 2 Hottest 200 | 80 112 140 200 Shots Fired 192 | 12 84 67 29 Gun 38 | 12 16 7 3 Cannon 142 | . 68 57 17 Launcher 2 | . . . 2 Special 10 | . . 3 7 Kinetic 38 | . 28 7 3 Thermal 93 | 12 44 30 7 Explosive 2 | . . . 2 Electromagnetic 59 | . 12 30 17 Robot Hit Streak 12 | 6 10 9 12 Robot Miss Streak 4 | 1 2 4 1 Penetration Max . | . . . . Secondary Targets . | . . . . Shots Hit Robots 123 | 8 42 32 41 Core Hits 52 | 2 23 10 17 Critical Kills . | . . . . Critical Parts Destroyed . | . . . . Critical Strikes 1 | . . . 1 Smash 1 | . . . 1 Melee Attacks 21 | . . . 21 Impact 17 | . . . 17 Slashing . | . . . . Piercing . | . . . . Sneak Attacks 7 | . . . 7 Combat Hostiles . | . . . . Follow-up Attacks 4 | . . . 4 Damage Inflicted 2609 | 103 770 544 1192 Guns 369 | 103 109 121 36 Cannons 1323 | . 620 403 300 Explosions 169 | . 41 . 128 Melee 661 | . . . 661 Ramming . | . . . . Kinetic 429 | . 272 121 36 Thermal 792 | 103 326 250 113 Explosive 82 | . . . 82 Electromagnetic 645 | . 172 173 300 Impact 661 | . . . 661 Slashing . | . . . . Piercing . | . . . . Highest Corruption . | . . . . Average Corruption . | . . . . Corruption Purged . | . . . . Corruption Blocked . | . . . . Overload Shots . | . . . . Overflow Damage 83 | . . . 83 Projectiles . | . . . . Explosions 1 | . . . 1 Melee 82 | . . . 82 Knockbacks 3 | . 3 . . Impact . | . . . . Kinetic 3 | . 3 . . Secondary . | . . . . Self-Inflicted Damage 63 | . 39 . 24 Shots 2 | . 1 . 1 Rammed . | . . . . Targets Rammed . | . . . . Kicked . | . . . . Crushed . | . . . . Highest Temperature 358 | 108 270 66 358 Average Temperature 64 | 55 68 16 95 Received Heat Transfer 513 | . 84 135 294 Siege Activations . | . . . . Martial Activations . | . . . . Shielding Activations . | . . . . Robots Disrupted 1 | . . . 1 Combat Hostiles 1 | . . . 1 Robots Corrupted . | . . . . Combat Hostiles . | . . . . Parts Fried 3 | . . . 3 Impact Corruptions 1 | . . . 1 Robots Melted . | . . . . Combat Hostiles . | . . . . Parts Melted 1 | . . . 1 Heat Transferred 2092 | 225 720 567 580 Parts Sabotaged . | . . . . Parts Stolen . | . . . . Parts Stripped . | . . . . Power Chain Reactions 2 | . 1 . 1 Alert | -11 -10 -10 -7 ------- Run | Yrd Mat Sub Rec Maximum Alert Level . | . . . . Low Security (%) 100 | 100 100 . 100 Level 1 . | . . . . Level 2 . | . . . . Level 3 . | . . . . Level 4 . | . . . . Level 5 . | . . . . High Security . | . . . . Max Security . | . . . . Peak Influence 97 | 5 97 . 54 Initial 30 | . . . 30 Average 20 | . 23 . 17 Influence Increases 694 | 5 316 135 238 Destroy 0b10 Robot/C 280 | . 180 60 40 Destroy 0b10 Robot/NC 110 | 5 55 . 50 Destroy Leader 48 | . 48 . . Select Force Hacks 90 | . . . 90 Disable Machine 60 | . 30 . 30 Destroy Structure 31 | . 3 . 28 Lose Combat Pursuer 75 | . . 75 . Influence Decreases 692 | 5 235 153 299 Entered New Map 73 | . . 40 33 Time Decay 519 | 5 235 103 176 Lost Part 100 | . . 10 90 Squads Dispatched 3 | . 3 . . Investigation 1 | . 1 . . Extermination . | . . . . Reinforcement 2 | . 2 . . Assault . | . . . . Garrison . | . . . . Intercept . | . . . . Searches Triggered . | . . . . Construction Impeded . | . . . . Haulers Reinforced . | . . . . Active Scanning Responses . | . . . . Cargo Convoy Interrupts . | . . . . Stealth | -11 -10 -10 -7 --------- Run | Yrd Mat Sub Rec Distress Signals . | . . . . Communications Jammed . | . . . . Distress Signals . | . . . . Times Spotted 34 | . 13 17 4 Peak Tracking Total 4 | . 4 4 1 Tactical Retreats 3 | . . 3 . Traps | -11 -10 -10 -7 ------- Run | Yrd Mat Sub Rec Traps Triggered 2 | . 2 . . Indirectly . | . . . . Trap Hack Attempts . | . . . . Triggered . | . . . . Disarmed . | . . . . Reprogrammed . | . . . . Reused . | . . . . Traps Extracted . | . . . . Installed . | . . . . Triggered . | . . . . Machines | -11 -10 -10 -7 ---------- Run | Yrd Mat Sub Rec Machines Disabled 6 | . 3 1 2 Max in Single Turn 1 | . 1 1 1 Machines Repaired . | . . . . Machines Dismantled . | . . . . Machines Sabotaged . | . . . . Overloaded Fab Kills . | . . . . Hacking | -11 -10 -10 -7 --------- Run | Yrd Mat Sub Rec Machines Accessed 11 | . 5 . 6 Terminals 5 | . 2 . 3 Fabricators . | . . . . Repair Stations 1 | . 1 . . Recycling Units 5 | . 2 . 3 Scanalyzers . | . . . . Garrison Access . | . . . . Total Hacks 24 | . 10 . 14 Successful 11 | . 5 . 6 Failed 13 | . 5 . 8 Catastrophic 2 | . . . 2 Database Lockouts . | . . . . Manual 15 | . 6 . 9 Terminals 11 | . 4 . 7 Fabricators . | . . . . Repair Stations 2 | . 2 . . Recycling Units 11 | . 4 . 7 Scanalyzers . | . . . . Garrison Access . | . . . . Terminal Hacks . | . . . . Fabricator Hacks . | . . . . Repair Station Hacks 2 | . 2 . . Scan Component 1 | . 1 . . Repair 1 | . 1 . . Recycling Unit Hacks 4 | . 2 . 2 Report Inventory 4 | . 2 . 2 Scanalyzer . | . . . . Garrison Access Hacks . | . . . . Unauthorized Hacks 5 | . 1 . 4 Terminals 1 | . . . 1 Botnet 1 | . . . 1 Fabricators . | . . . . Repair Stations . | . . . . Recycling Units 4 | . 1 . 3 Recyclers 1 | . 1 . . Tunnel 3 | . . . 3 Scanalyzers . | . . . . Garrison Access . | . . . . Data Cores Recovered . | . . . . Used . | . . . . Hacking Detections 11 | . 5 . 6 Full Trace Events 3 | . 1 . 2 Feedback Events . | . . . . Feedback Blocked . | . . . . Robot Schematics Acquired . | . . . . Robots Built . | . . . . Authchips . | . . . . Time . | . . . . Total Robot Build Rating . | . . . . Part Schematics Acquired . | . . . . Parts Built . | . . . . Authchips . | . . . . Time . | . . . . Total Part Build Rating . | . . . . Part Studies Acquired . | . . . . Parts Repaired 1 | . 1 . . Time 26 | . 26 . . Parts Recycled . | . . . . Recycled Matter . | . . . . Retrieved Matter . | . . . . Retrieved Components . | . . . . Parts Scanalyzed . | . . . . Part Schematics Acquired . | . . . . Parts Damaged . | . . . . Bothacking | -11 -10 -10 -7 ------------ Run | Yrd Mat Sub Rec Used RIF Installer . | . . . . Robots Hacked . | . . . . Non-combat . | . . . . Combat . | . . . . Robot Hacks Applied . | . . . . Relay Couplers Released . | . . . . Fabnet Peak Effective % . | . . . . Robots Rewired . | . . . . Allies Hacked . | . . . . Hacks Repelled . | . . . . Allies | -11 -10 -10 -7 -------- Run | Yrd Mat Sub Rec Total Allies . | . . . . Largest Group . | . . . . Highest-Rated Group . | . . . . Highest-Rated Ally . | . . . . Total Orders . | . . . . Ally Attacks . | . . . . Total Damage . | . . . . Kills . | . . . . Allies Corrupted . | . . . . Allies Melted . | . . . . Intel | -11 -10 -10 -7 ------- Run | Yrd Mat Sub Rec Active Infowar (turns) 1315 | 12 1278 25 . Seismic 1315 | 12 1278 25 . Robot Analysis Total . | . . . . Derelict Logs Recovered 2 | . . 2 . Drone Launches . | . . . . Drone Recoveries . | . . . . Exploration | -11 -10 -10 -7 ------------- Run | Yrd Mat Sub Rec Turns Passed 2881 | 96 1304 1001 480 Spaces Moved 1482 | 43 590 600 249 Core 1 | 1 . . . Treads 103 | 29 74 . . Legs . | . . . . Wheels 1378 | 13 516 600 249 Hover . | . . . . Flight . | . . . . Fastest Speed 50 | 50 140 131 130 Average Speed 147 | 136 160 137 139 Slowest Speed 320 | 160 320 155 150 Overloaded Moves . | . . . . Propulsion Burnouts . | . . . . Robots Hopped . | . . . . Potential Cave-ins . | . . . . Cave-ins Triggered . | . . . . Exploration Rate (%) 41 | 4 78 41 42 Regions Visited 3 Branch Regions 2 Pre-discovered Areas 3 | . . . 3 Known Exits Taken . | . . . . Unknown Exits Taken 3 | 1 1 1 . Scrap Searched . | . . . . Spaces Dug . | . . . . Terrain Destroyed 31 | . 2 . 29 Melee . | . . . . Projectile . | . . . . AOE 31 | . 2 . 29 Terrain Rammed . | . . . . Walls Destroyed . | . . . . Machines Disabled . | . . . . Actions | -11 -10 -10 -7 --------- Run | Yrd Mat Sub Rec Total 1956 | 64 861 716 315 Wait 225 | . 182 37 6 Move 1479 | 42 589 599 249 Hop . | . . . . Pick Up 52 | 4 28 14 6 Fast Attach 12 | 9 1 2 . Attach 11 | . . 1 10 Detach 3 | 2 . . 1 Swap 24 | 1 8 7 8 Drop 30 | . 11 19 . Fire 103 | 6 42 37 18 Melee 17 | . . . 17 Ram . | . . . . Kick . | . . . . Crush . | . . . . Escape Stasis . | . . . . Rewire . | . . . . Trap . | . . . . Miscellaneous . | . . . . Route ------- -11/Scrapyard -10/Materials (discovered 3 exits: [*Mat] / [*Min] / [*Sub]) -10/Subcaves -7/Recycling History --------- Turn | Location | Event 13 | -11/Scrapyard | Discovered new exit (range 15) 97 | -11/Scrapyard | Entered Materials 318 | -10/Materials | Build established: Mutant 537 | -10/Materials | Repaired Seismic Detector 678 | -10/Materials | Discovered new exit (range 15) 1016 | -10/Materials | Discovered new exit (range 15) 1360 | -10/Materials | Discovered new exit (range 10) 1401 | -10/Materials | Entered Subcaves 1552 | -10/Subcaves | Shifting Twisted Machinery released Flamer 1748 | -10/Subcaves | Learned Materials emergency access door positions 1832 | -10/Subcaves | Shifting Twisted Machinery released Barrage Gun 1833 | -10/Subcaves | Shifting Twisted Machinery released Sub. Monowheel 2310 | -10/Subcaves | Discovered new exit (range 12) 2402 | -10/Subcaves | Entered Recycling 2466 | -7/Recycling | Core integrity fell below 50% 2496 | -7/Recycling | Lost 3 parts (1p2w) 2698 | -7/Recycling | Lost 4 parts (1p1u2w) 2711 | -7/Recycling | Core integrity fell below 20% 2882 | -7/Recycling | Destroyed by Y-54 Guardian with Gatling Laser Last Messages --------------- 02755_ Acquired 2 matter. 02758_ Acquired Com. Wheel. 02870_ Connecting with Recycling Unit... >>Recycling(Report) Matter reserves: 0 Inventory: Tractor Beam (96%) Sml. Storage Unit (78%) Lgt. Ion Engine (80%) Com. Wheel (93%) Lgt. Ion Engine (87%) Corrupted Lgt. Ion Engine (42%) Com. Wheel (93%) Corrupted Sml. Storage Unit (95%) >>Force(Tunnel) DISCOVERED[-10/Mines] 02875_ Sneak attack on Y-54 Guardian. 02876_ Y-54 Guardian springs to life. 02879_ Com. Wheel destroyed. 02882_ Hrd. Light Armor Plating destroyed. Map ----- +----------------------------------------------------+ | ????????????????????????????????????????????? | | ????????????????????????????????????????????? | | ????????????????????????????????????????????? | | ????????????????????????????????????????????? | | ????????????????????????????????????????????? | | ????????????????????????????????????????????? | | ????????????????????????????????????????????? | | ????????????????????????????????????????????? | | ????????????????????????????????????????????? | | ????????????????????????????????????????????? | | ????????????????????????????????????????????? | | ????????????????????????????????????????????? | | ????????????????????????????????????????????? | | ????????????????????????????????????????????? | | ????????????????????????????????????????????? | | ????????????????????????????????????????????? | | ????????????????????????????????????????????? | | ??##????????????????????????????????????????? | | ??# #####???????????????????????????????????? | | ??# #???????????????????????????????????? | | ??# #???????????????????????????????????? | | ??# ! #???????????????????????????????????? | | ??# #???????????????????????????????????? | | ??# % #######??????##????#????????????????? | | ??# # #######Y## #????????????????? | | ??# # @ #????????????????? | | ??# + #????????????????? | | ??# # #?????????#####??? | | ??# # ##"Y"#########?????????#"""#### | | ??# %## ###"""#????????#######??#"Y"#!!! | | ??# ## #?#####????????# ####" "#!!! | | ??# # #????????####??# | | ??# !!## ################ T | | ??# ## % %%[ % %=! | | ??# ## ####%##### ### ########## | | ??######## #??# #???#"*=#?#######????????# | | ?????????# #??# #???#####????????????????# | | ?????????# #??# #????????????????????????# | | ??######## ####+######???????????????????# | | ??# # # [! #???????????????????# | | ??# # # #???????????????????# | | ??# # #! ] #?????????########### | | ??# # # #?????????# # | | ??# # # #?????????# """" # | | ??# + + #?????????# """" # | | ??#! ! # # ! #?????????# """" + | | ??# %! # + !! #?????????# """" # | | ??#%###### ###########?????????# # | | ??###????# #???????????????????# # | | ??#########+#############????????# """T""" # | +----------------------------------------------------+ Best States ------------- Heat Dissipation 25 Energy Generation 10 Energy Capacity 250 Matter Stores 300 Matter Capacity 300 Sight Range 16 Terrain Scan Density 10 Armor Coverage 150 Evasion (%) 42 Recoil Reduction 2 Item Schematics ----------------- None Robot Schematics ------------------ None Fabricated ------------ Nothing Repaired ---------- Seismic Detector | 40% | -10/Materials Studied --------- None Alien Tech Used ----------------- None Achievements -------------- Art Critic Challenges ------------ None Game ------ Seed ArcHardenedRigger Manual? 0 Play Time 00:27:07 Cumulative 9.7 hours Start 2025.11.10 @ 22:06:37 End 2025.11.10 @ 22:30:45 Sessions 1 Manual Loads 0 Difficulty Rogue Special Mode None Game No. 7 Rogue 7 Adventurer 0 Explorer 0 Win Type - Total 1 Types 1/0/0/0/0/0/0/0/0/0 Lore% 26 Gallery% 22 Achievement% 24 Wizard Run 0 Options --------- Layout 1 ASCII 0 Keyboard 1 Movement Vi Keybinds 0 Fullscreen 2 Font 28/Smallcaps Map View 50x43 Zoom Use 0% Tactical HUD 1 Map Filters NONE Filters NONE Steam 0 RUN: bae7ff87-42f5-49d3-a3ef-4a81f576e898